Cogmind - Beta 17.1 @@@ ROGUE MODE // 2026.09.19 @ 21:17:25 Player: Acrityzx Result: Destroyed by S-10 Pest with Light Assault Rifle Performance ------------- Evolutions (0) 0 Regions Visited (2) 400 Robots Destroyed (12) 60 Value Destroyed (204) 204 Prototype IDs (0) 0 Alien Tech Used (0) 0 Bonus (0) 0 TOTAL SCORE: 664 Bonus ------- None Cogmind --------- Core Integrity 0/250 Matter 289/300 Energy 124/125 System Corruption 2% Temperature Cool (0) Movement Core (100) Ox1 Location -10/Mines Parts ------- > --- POWER (1) -------- Light Ion Engine > --- PROPULSION (2) --- (None) > --- UTILITY (2) ------ (None) > --- WEAPON (2) ------- Light Assault Rifle > --- INVENTORY (5) ---- Wheel Wheel Medium Laser Peak State ------------ > --- POWER ------------ Light Ion Engine > --- PROPULSION ------- Aluminum Leg Aluminum Leg > --- UTILITY ---------- Heat Sink Medium Matter Pod > --- WEAPON ----------- Medium Laser Small Laser > --- INVENTORY -------- Wheel Wheel [Rating: 7] Favorites ----------- Power Light Ion Engine Engine Light Ion Engine Propulsion Aluminum Leg Leg Aluminum Leg Utility Heat Sink Device Heat Sink Storage High-capacity Matter Pod Weapon Small Laser Energy Gun Small Laser Ballistic Gun Light Assault Rifle Launcher Grenade Launcher Build | -11 -10 -10 ------- Run | Yrd Mat Min Slots Evolved . | . . . Power . | . . . Propulsion . | . . . Utility . | . . . Weapon . | . . . Parts Attached 13 | 7 4 2 Power 3 | 1 1 1 Engine 3 | 1 1 1 Core . | . . . Reactor . | . . . Propulsion 2 | 2 . . Treads . | . . . Leg 2 | 2 . . Wheel . | . . . Hover . | . . . Flight . | . . . Utility 3 | 2 1 . Device 1 | 1 . . Storage 2 | 1 1 . Processor . | . . . Hackware . | . . . Protection . | . . . Artifact . | . . . Weapon 5 | 2 2 1 Energy Gun 2 | 2 . . Energy Cannon . | . . . Ballistic Gun 1 | . . 1 Ballistic Cannon . | . . . Launcher 2 | . 2 . Special Weapon . | . . . Impact Weapon . | . . . Slashing Weapon . | . . . Piercing Weapon . | . . . Special Melee Weapon . | . . . Unidentified Prototypes . | . . . Parts Lost 7 | . 5 2 Power 2 | . 2 . Propulsion 1 | . 1 . Utility 2 | . . 2 Weapon 2 | . 2 . Highest Loss Streak 6 | . 4 6 To Critical Strikes . | . . . Average Backups 2 | 1 2 3 Power . | . . . Propulsion 1 | 1 2 2 Utility . | . . . Weapon . | . . 1 Tool/Special . | . . . Unused Backups 2 | . . 2 Power . | . . . Propulsion 2 | . . 2 Utility . | . . . Weapon . | . . . Tool/Special . | . . . Average Slot Usage (%) 88 | . 92 21 Engine 11 | . 11 7 Leg 24 | . 25 . Device 13 | . 14 7 Storage 13 | . 13 7 Energy Gun 14 | . 14 . Launcher 10 | . 11 . Peak Build Rating 7 | 7 7 2 Average Rating 5 | 4 6 1 On Entrance 3 | . 7 2 Avg Prop Armor Cover (%) . | . . . Naked Turns 2 | . . 2 Heaviest Build 12 | 9 12 5 Greatest Support 20 | 20 20 3 Greatest Overweight (x) 1 | . 1 1 Average Overweight (x) . | . . . Largest Inventory Capacity 5 | 5 5 5 Average Capacity 5 | 5 5 5 Most Carried 5 | 4 5 3 Average Carried 2 | 1 2 3 Final Capacity 5 | 5 5 5 Final Carried 3 | 2 3 3 Class Distribution -------------------- 100% | Mutant Dominant Class ---------------- Mutant | -10/Materials Mutant | -10/Mines Resources | -11 -10 -10 ----------- Run | Yrd Mat Min Matter Collected 429 | 270 149 10 Remotely . | . . . Salvage Created 301 | 66 215 20 Parts 26 | 7 17 2 Haulers Intercepted . | . . . Recyclers Shooed . | . . . Parts Field Recycled . | . . . Retrieved Matter . | . . . Parts Self-Destructed . | . . . Prevented . | . . . Parts Restored . | . . . Kills | -11 -10 -10 ------- Run | Yrd Mat Min Combat Hostiles Destroyed 5 | 1 3 1 Melee 1 | . . 1 Guns 2 | 1 1 . AOE 2 | . 2 . Classes Destroyed 6 | 2 3 1 Worker 3 | 1 2 . Builder 2 | . 2 . Recycler 1 | . 1 . Watcher 1 | . 1 . Swarmer 1 | . . 1 Grunt 4 | 1 3 . Best Kill Streak 6 | 1 6 1 Combat Bots Only 2 | 1 2 1 Max Kills in Single Turn 3 | 1 3 1 Gunslinging . | . . . Exploded 1 | . 1 . Melee 1 | . . 1 Uniques/NPCs Destroyed . | . . . Combat | -11 -10 -10 -------- Run | Yrd Mat Min Hostile Shots Fired 107 | 7 79 21 Missed 34 | 2 30 2 Hits 73 | 5 49 19 Projectile 73 | 5 49 19 Critical Strikes 1 | . 1 . Damage Taken 761 | 57 528 176 Core 256 | 12 124 120 Absorbed by Shields . | . . . Core Remaining (%) 95 | 95 . . Volleys Fired 27 | 8 18 1 Largest 2 | 2 2 1 Hottest 90 | 90 70 20 Shots Fired 41 | 15 25 1 Gun 34 | 15 18 1 Cannon . | . . . Launcher 7 | . 7 . Special . | . . . Kinetic 1 | . . 1 Thermal 33 | 15 18 . Explosive 7 | . 7 . Electromagnetic . | . . . Robot Hit Streak 5 | 2 4 5 Robot Miss Streak 5 | 5 2 . Penetration Max . | . . . Secondary Targets . | . . . Shots Hit Robots 18 | 5 12 1 Core Hits 22 | 3 16 3 Critical Kills . | . . . Critical Parts Destroyed . | . . . Critical Strikes . | . . . Melee Attacks . | . . . Impact . | . . . Slashing . | . . . Piercing . | . . . Sneak Attacks . | . . . Combat Hostiles . | . . . Follow-up Attacks . | . . . Damage Inflicted 651 | 60 554 37 Guns 180 | 60 110 10 Cannons . | . . . Explosions 443 | . 443 . Melee . | . . . Ramming 28 | . 1 27 Kinetic 10 | . . 10 Thermal 170 | 60 110 . Explosive 443 | . 443 . Electromagnetic . | . . . Impact . | . . . Slashing . | . . . Piercing . | . . . Highest Corruption 2 | . . 2 Average Corruption 2 | . . 2 Corruption Purged . | . . . Corruption Blocked . | . . . Effects 1 | . . 1 Message Errors 1 | . . 1 Overload Shots . | . . . Overflow Damage 7 | . 7 . Projectiles . | . . . Explosions 7 | . 7 . Melee . | . . . Knockbacks . | . . . Impact . | . . . Kinetic . | . . . Secondary . | . . . Self-Inflicted Damage 63 | . 51 12 Shots 2 | . 2 . Rammed 6 | . . 6 Targets Rammed 7 | . 1 6 Kicked 1 | . 1 . Crushed . | . . . Highest Temperature 154 | 154 12 . Average Temperature 59 | 62 7 . Received Heat Transfer 177 | 30 147 . Siege Activations . | . . . Martial Activations . | . . . Shielding Activations . | . . . Robots Disrupted . | . . . Combat Hostiles . | . . . Robots Corrupted . | . . . Combat Hostiles . | . . . Parts Fried . | . . . Impact Corruptions . | . . . Robots Melted . | . . . Combat Hostiles . | . . . Parts Melted . | . . . Heat Transferred 399 | 149 250 . Parts Sabotaged . | . . . Parts Stolen . | . . . Parts Stripped . | . . . Power Chain Reactions . | . . . Alert | -11 -10 -10 ------- Run | Yrd Mat Min Maximum Alert Level . | . . . Low Security (%) 100 | 100 100 100 Level 1 . | . . . Level 2 . | . . . Level 3 . | . . . Level 4 . | . . . Level 5 . | . . . High Security . | . . . Max Security . | . . . Peak Influence 66 | 20 66 20 Initial 2 | . . 2 Average 13 | 1 19 13 Influence Increases 228 | 25 183 20 Destroy 0b10 Robot/C 100 | 20 60 20 Destroy 0b10 Robot/NC 35 | 5 30 . Destroy Leader 22 | . 22 . Disable Machine 15 | . 15 . Destroy Structure 26 | . 26 . Partial Spotted 15 | . 15 . Lose Combat Pursuer 15 | . 15 . Influence Decreases 208 | 25 176 7 Entered New Map 5 | . . 5 Time Decay 159 | 25 134 . Lost Part 44 | . 42 2 Squads Dispatched 2 | . 2 . Investigation 1 | . 1 . Extermination . | . . . Reinforcement 1 | . 1 . Assault . | . . . Garrison . | . . . Intercept . | . . . Searches Triggered . | . . . Construction Impeded . | . . . Haulers Reinforced . | . . . Active Scanning Responses . | . . . Cargo Convoy Interrupts . | . . . Stealth | -11 -10 -10 --------- Run | Yrd Mat Min Distress Signals 3 | . 3 . Communications Jammed . | . . . Distress Signals . | . . . Times Spotted 18 | 1 14 3 Peak Tracking Total 8 | 1 8 3 Tactical Retreats 1 | . 1 . Traps | -11 -10 -10 ------- Run | Yrd Mat Min Traps Triggered . | . . . Indirectly . | . . . Trap Hack Attempts . | . . . Triggered . | . . . Disarmed . | . . . Reprogrammed . | . . . Reused . | . . . Traps Extracted . | . . . Installed . | . . . Triggered . | . . . Machines | -11 -10 -10 ---------- Run | Yrd Mat Min Machines Disabled 1 | . 1 . Max in Single Turn 1 | . 1 . Machines Repaired . | . . . Machines Dismantled . | . . . Machines Sabotaged . | . . . Overloaded Fab Kills . | . . . Hacking | -11 -10 -10 --------- Run | Yrd Mat Min Machines Accessed 3 | . 3 . Terminals 3 | . 3 . Fabricators . | . . . Repair Stations . | . . . Recycling Units . | . . . Scanalyzers . | . . . Garrison Access . | . . . Total Hacks 6 | . 6 . Successful 1 | . 1 . Failed 5 | . 5 . Catastrophic . | . . . Database Lockouts . | . . . Manual . | . . . Terminals 6 | . 6 . Fabricators . | . . . Repair Stations . | . . . Recycling Units . | . . . Scanalyzers . | . . . Garrison Access . | . . . Terminal Hacks 1 | . 1 . Alert Level 1 | . 1 . Fabricator Hacks . | . . . Repair Station Hacks . | . . . Recycling Unit Hacks . | . . . Scanalyzer . | . . . Garrison Access Hacks . | . . . Unauthorized Hacks . | . . . Terminals . | . . . Fabricators . | . . . Repair Stations . | . . . Recycling Units . | . . . Scanalyzers . | . . . Garrison Access . | . . . Data Cores Recovered . | . . . Used . | . . . Hacking Detections 2 | . 2 . Full Trace Events 1 | . 1 . Feedback Events . | . . . Feedback Blocked . | . . . Robot Schematics Acquired . | . . . Robots Built . | . . . Authchips . | . . . Time . | . . . Total Robot Build Rating . | . . . Part Schematics Acquired . | . . . Parts Built . | . . . Authchips . | . . . Time . | . . . Total Part Build Rating . | . . . Part Studies Acquired . | . . . Parts Repaired . | . . . Time . | . . . Parts Recycled . | . . . Recycled Matter . | . . . Retrieved Matter . | . . . Retrieved Components . | . . . Parts Scanalyzed . | . . . Part Schematics Acquired . | . . . Parts Damaged . | . . . Bothacking | -11 -10 -10 ------------ Run | Yrd Mat Min Used RIF Installer . | . . . Robots Hacked . | . . . Non-combat . | . . . Combat . | . . . Robot Hacks Applied . | . . . Relay Couplers Released . | . . . Fabnet Peak Effective % . | . . . Robots Rewired . | . . . Allies Hacked . | . . . Hacks Repelled . | . . . Allies | -11 -10 -10 -------- Run | Yrd Mat Min Total Allies . | . . . Largest Group . | . . . Highest-Rated Group . | . . . Highest-Rated Ally . | . . . Total Orders . | . . . Ally Attacks . | . . . Total Damage . | . . . Kills . | . . . Allies Corrupted . | . . . Allies Melted . | . . . Intel | -11 -10 -10 ------- Run | Yrd Mat Min Active Infowar (turns) . | . . . Robot Analysis Total . | . . . Derelict Logs Recovered . | . . . Drone Launches . | . . . Drone Recoveries . | . . . Exploration | -11 -10 -10 ------------- Run | Yrd Mat Min Turns Passed 646 | 227 403 16 Spaces Moved 473 | 182 284 7 Core 69 | 46 16 7 Treads . | . . . Legs 404 | 136 268 . Wheels . | . . . Hover . | . . . Flight . | . . . Fastest Speed 50 | 50 100 50 Average Speed 112 | 102 120 85 Slowest Speed 190 | 120 190 100 Overloaded Moves . | . . . Propulsion Burnouts . | . . . Robots Hopped . | . . . Potential Cave-ins . | . . . Cave-ins Triggered . | . . . Exploration Rate (%) 13 | 5 32 3 Regions Visited 2 Branch Regions 1 Pre-discovered Areas . | . . . Known Exits Taken . | . . . Unknown Exits Taken 2 | 1 1 . Scrap Searched . | . . . Spaces Dug . | . . . Terrain Destroyed 29 | . 29 . Melee . | . . . Projectile . | . . . AOE 29 | . 29 . Terrain Rammed . | . . . Walls Destroyed . | . . . Machines Disabled . | . . . Actions | -11 -10 -10 --------- Run | Yrd Mat Min Total 543 | 206 321 16 Wait 10 | 5 5 . Move 471 | 181 283 7 Hop . | . . . Pick Up 5 | 5 . . Fast Attach 10 | 4 4 2 Attach 6 | 3 3 . Detach 4 | . 4 . Swap . | . . . Drop 3 | . 3 . Fire 27 | 8 18 1 Melee . | . . . Ram 6 | . . 6 Kick 1 | . 1 . Crush . | . . . Escape Stasis . | . . . Rewire . | . . . Trap . | . . . Miscellaneous . | . . . Route ------- -11/Scrapyard -10/Materials -10/Mines History --------- Turn | Location | Event 2 | -11/Scrapyard | Met Revision 17 175 | -11/Scrapyard | Discovered new exit (range 8) 228 | -11/Scrapyard | Entered Materials 301 | -10/Materials | Build established: Mutant 494 | -10/Materials | Discovered new exit (range 16) 629 | -10/Materials | Core integrity fell below 50% 631 | -10/Materials | Entered Mines 640 | -10/Mines | Core integrity fell below 20% 647 | -10/Mines | Destroyed by S-10 Pest with Light Assault Rifle Last Messages --------------- 00608_ U-05 Engineer lays Concrete. 00613_ Aluminum Leg destroyed. LOCATION=UNKNOWN GOAL=ESCAPE 00636_ Slammed into S-10 Pest. 00636_ Hcp. Matter Pod destroyed. 00636_ System corrupted by crushing effect (+2). 00637_ Heat Sink destroyed. 00637_ Slammed into S-10 Pest. 00637_ S-10 Pest destroyed. [Achievement: Fist Fight] 00639_ Acquired Lgt. Ion Engine. 00640_ Acquired 10 matter. 00641_ Slammed into S-10 Pest. 00642_ Destabilizing: Core damaged (-12). 00643_ Slammed into S-10 Pest. 00644_ SU1AX%M2:ILRYT#UY#PIFXQSFPLE VORE 00644_ Slammed into S-10 Pest. 00645_ Acquired Lgt. Assault Rifle. [Achievement: First Step to Greatness] Map ----- +----------------------------------------------------+ | | | | | | | | | | | | | | | | | | | | | | | | | | | | | | | | | | | | | | | | | | | ?????????????????????????????????????????????????? | | ????????????????????????########?????????????????? | | ????????????????????????# #?????????????????? | | ???????????????##########% s #?????????????????? | | ???????????????# %%@ #?????????????????? | | ???????????????# ########s #?????????????????? | | ????????????????????????# #?????????????????? | | ????????????????????????########?????????????????? | | ?????????????????????????????????????????????????? | | ?????????????????????????????????????????????????? | | ?????????????????????????????????????????????????? | | ?????????????????????????????????????????????????? | | ?????????????????????????????????????????????????? | | ?????????????????????????????????????????????????? | | ?????????????????????????????????????????????????? | | ?????????????????????????????????????????????????? | | ?????????????????????????????????????????????????? | | ?????????????????????????????????????????????????? | | ?????????????????????????????????????????????????? | | ?????????????????????????????????????????????????? | | ?????????????????????????????????????????????????? | | ?????????????????????????????????????????????????? | | ?????????????????????????????????????????????????? | | ?????????????????????????????????????????????????? | | ?????????????????????????????????????????????????? | | ?????????????????????????????????????????????????? | | ?????????????????????????????????????????????????? | | ?????????????????????????????????????????????????? | | ?????????????????????????????????????????????????? | +----------------------------------------------------+ Best States ------------- Heat Dissipation 35 Energy Generation 10 Energy Capacity 125 Matter Stores 400 Matter Capacity 500 Sight Range 16 Terrain Scan Density 10 Evasion (%) 55 Item Schematics ----------------- None Robot Schematics ------------------ None Fabricated ------------ Nothing Repaired ---------- Nothing Studied --------- None Alien Tech Used ----------------- None Achievements -------------- First Step to Greatness Fist Fight For Emergencies Only One Hack Too Far Organ Harvest Storm Trooper Uninvited Guest Challenges ------------ None Game ------ Seed BoreWeldingDistortion Manual? 0 Play Time 00:31:44 Cumulative 0.5 hours Start 2026.09.19 @ 20:39:56 End 2026.09.19 @ 21:17:25 Sessions 2 Manual Loads 0 Difficulty Rogue Special Mode None Game No. 1 Rogue 1 Adventurer 0 Explorer 0 Win Type - Total 0 Types 0/0/0/0/0/0/0/0/0/0 Lore% 0 Gallery% 0 Achievement% 1 Wizard Run 0 Options --------- Layout 0 ASCII 0 Keyboard 1 Movement Arrows Keybinds 0 Fullscreen 2 Font 24/Terminus Map View 76x50 Zoom Use 9% Tactical HUD 1 Map Filters NONE Filters NONE Steam 1 RUN: 9a004c3d-6f1f-4fe5-9f5b-1bd2631e7188